bitfinex/quotes_BTCUSD_20250709
["timestamp","ask_amount","ask_price","bid_price","bid_amount"]
[1752080123867,0.3250899,109520.0,109510.0,0.14197794]
[1752080125435,0.6650899,109520.0,109510.0,0.14197794]
[1752080126475,1.01562355,109520.0,109510.0,0.14197794]
[1752080130287,0.6650899,109520.0,109510.0,0.14197794]
[1752080132415,0.6650899,109520.0,109510.0,0.28185794]
[1752080134875,1.01562917,109520.0,109510.0,0.28185794]
[1752080137060,1.01761917,109520.0,109510.0,0.24530794]
[1752080137493,1.01761917,109520.0,109510.0,0.24730794]
[1752080137702,1.01761917,109520.0,109510.0,0.25055794]
[1752080138259,1.01761917,109520.0,109510.0,0.25047794]
[1752080140459,1.01761917,109520.0,109510.0,0.11067794]
[1752080140776,1.01761917,109520.0,109510.0,0.10742794]
[1752080140976,1.03677917,109520.0,109510.0,0.24522794]
[1752080141181,1.03677917,109520.0,109510.0,0.14526456]
[1752080142595,1.03677917,109520.0,109510.0,0.14226456]
[1752080142799,1.17657917,109520.0,109510.0,0.14226456]
[1752080143396,1.17657917,109520.0,109510.0,0.14222456]
[1752080143619,1.17360917,109520.0,109510.0,0.14222456]
[1752080143889,1.17360917,109520.0,109510.0,0.14322456]
[1752080144083,1.17666917,109520.0,109510.0,0.14322456]
[1752080144889,1.17666917,109520.0,109510.0,0.14122456]
[1752080145207,1.17666917,109520.0,109510.0,0.14222456]
[1752080145850,1.15750917,109520.0,109510.0,0.14430456]
[1752080146052,1.15750917,109520.0,109510.0,0.16355456]
[1752080146463,1.15542917,109520.0,109510.0,0.17955456]
[1752080146663,1.01562917,109520.0,109510.0,0.17955456]
[1752080146842,1.15534917,109520.0,109510.0,0.17955456]
[1752080147271,1.15530917,109520.0,109510.0,0.17955456]
[1752080147482,0.8047699,109520.0,109510.0,0.16355456]
[1752080147916,0.8047699,109520.0,109510.0,0.50896383]
[1752080148154,0.6742204,109520.0,109510.0,0.72235705]
[1752080148328,0.58278347,109520.0,109510.0,0.37181778]
[1752080148748,0.58278347,109520.0,109510.0,0.36268628]
[1752080149018,0.57365297,109520.0,109510.0,0.71322555]
[1752080150051,0.57365297,109520.0,109510.0,0.73148812]
[1752080150264,0.57365297,109520.0,109510.0,0.72235696]
[1752080150677,0.00912925,109530.0,109520.0,0.2287757]
[1752080150888,0.35825875,109530.0,109520.0,0.94811481]
[1752080151110,0.36738782,109530.0,109520.0,0.94811481]
[1752080151318,0.38192867,109530.0,109520.0,0.94811481]
[1752080151519,0.37279926,109530.0,109520.0,0.94811481]
[1752080151741,0.39105809,109530.0,109520.0,0.94811481]
[1752080151876,0.39305809,109530.0,109520.0,0.94811481]
[1752080152072,0.40218834,109530.0,109520.0,0.59757563]
[1752080152274,0.46066534,109530.0,109520.0,0.59757563]
[1752080152927,0.39305851,109530.0,109520.0,0.60657579]
[1752080153122,0.40218817,109530.0,109520.0,0.60657579]
[1752080153500,0.40218867,109530.0,109520.0,0.60657579]
[1752080154353,0.39305892,109530.0,109520.0,0.60657579]
[1752080155391,0.38392926,109530.0,109520.0,0.60657579]
[1752080155820,0.39305909,109530.0,109520.0,0.59744563]
[1752080156033,0.38392926,109530.0,109520.0,0.59744563]
[1752080156305,0.38392926,109530.0,109520.0,0.60657579]
[1752080156745,0.39305901,109530.0,109520.0,0.60657579]
[1752080159120,0.38392926,109530.0,109520.0,0.60657579]
[1752080159356,0.39305901,109530.0,109520.0,0.25616652]
[1752080159568,0.39305901,109530.0,109520.0,0.60657579]
[1752080160247,0.58478721,109530.0,109520.0,0.60657579]
[1752080160500,0.57565829,109530.0,109520.0,0.59744563]
[1752080160918,0.57565829,109530.0,109520.0,0.60657579]
[1752080163861,0.65512438,109530.0,109520.0,0.62358171]
[1752080164065,0.65512438,109530.0,109520.0,0.61445155]
[1752080164502,0.65512438,109530.0,109520.0,0.62358171]
[1752080164930,0.65720438,109530.0,109520.0,0.5703713]
[1752080165163,0.6480748,109530.0,109520.0,0.5703713]
[1752080165388,0.6480748,109530.0,109520.0,0.57950163]
[1752080165560,0.6480748,109530.0,109520.0,0.58255163]
[1752080167129,0.6480748,109530.0,109520.0,0.59168188]
[1752080167576,0.56860871,109530.0,109520.0,0.60718188]
[1752080167811,0.56652871,109530.0,109520.0,0.60718188]
[1752080169171,0.56652871,109530.0,109520.0,0.59805163]
[1752080170984,0.56652871,109530.0,109520.0,0.5889213]
[1752080171189,0.55739896,109530.0,109520.0,0.5889213]
[1752080171398,0.61866538,109530.0,109520.0,0.57979089]
[1752080172654,0.61866538,109530.0,109520.0,0.58892147]
[1752080172859,0.61866538,109530.0,109520.0,0.58892242]
[1752080177059,0.61866538,109530.0,109520.0,0.22938162]
[1752080177277,0.61866538,109530.0,109520.0,0.57979184]
[1752080177924,0.61866538,109530.0,109520.0,0.03763592]
[1752080178134,0.62074538,109530.0,109520.0,0.37254614]
[1752080178338,0.62074538,109530.0,109520.0,0.55516118]
[1752080178547,0.62074538,109530.0,109520.0,0.37254614]
[1752080179367,0.62074538,109530.0,109520.0,0.55516118]
[1752080179780,0.62074538,109530.0,109520.0,0.02213592]
[1752080179990,0.62074538,109530.0,109520.0,0.37254614]
[1752080180200,0.62074538,109530.0,109520.0,0.37257266]
[1752080180624,0.62074538,109530.0,109520.0,0.02216244]
[1752080180841,0.62074538,109530.0,109520.0,0.37257266]
[1752080181682,0.62071538,109530.0,109520.0,0.37257266]
[1752080181918,0.60617453,109530.0,109520.0,0.51217266]
[1752080182755,0.60617453,109530.0,109520.0,0.49514022]
[1752080183591,0.60617453,109530.0,109520.0,0.51218125]
[1752080184296,0.63360953,109530.0,109520.0,0.51218125]
[1752080184689,0.63360953,109530.0,109520.0,0.69479629]
[1752080184900,0.60617453,109530.0,109520.0,0.69479629]
[1752080185040,0.63360953,109530.0,109520.0,0.70392704]
[1752080185239,0.60617453,109530.0,109520.0,0.70392704]
[1752080185448,0.63360953,109530.0,109520.0,0.70392704]
[1752080186103,0.63360953,109530.0,109520.0,0.521312]
[1752080186518,0.63360953,109530.0,109520.0,0.51218125]
[1752080187040,0.64900953,109530.0,109520.0,0.50913125]
[1752080187246,0.64900953,109530.0,109520.0,0.51235125]
[1752080187444,0.63360953,109530.0,109520.0,0.51235125]
[1752080187808,0.64950953,109530.0,109520.0,0.50913125]
[1752080189711,0.63360953,109530.0,109520.0,0.51235125]
[1752080190176,1.0171906,109530.0,109520.0,0.01704103]
[1752080190497,1.12372753,109530.0,109520.0,0.01704103]
[1752080190704,1.12372753,109530.0,109520.0,0.15660103]
[1752080192320,1.12372753,109530.0,109520.0,0.01704103]
[1752080192521,1.12372753,109530.0,109520.0,0.15664103]
[1752080193767,1.12079753,109530.0,109520.0,0.15664103]
[1752080193912,1.12372753,109530.0,109520.0,0.15664103]
[1752080194110,1.12372753,109530.0,109520.0,0.1396]
[1752080194424,1.26328753,109530.0,109520.0,0.1396]
[1752080194839,0.56168647,109520.0,109510.0,0.35087478]
[1752080195043,0.6531234,109520.0,109510.0,0.49043478]
[1752080195248,0.54628647,109520.0,109510.0,0.6934665]
[1752080195448,0.59198663,109520.0,109510.0,0.72086049]
[1752080195668,0.59198663,109520.0,109510.0,0.73636066]
[1752080196176,0.59198663,109520.0,109510.0,0.57216941]
[1752080196396,0.58285613,109520.0,109510.0,0.71272958]
[1752080196615,0.58285613,109520.0,109510.0,0.73099224]
[1752080197043,0.40024109,109520.0,109510.0,0.7559229]
[1752080197451,0.59198688,109520.0,109510.0,0.7569229]
[1752080197651,0.59198688,109520.0,109510.0,0.74779182]
[1752080198069,0.59198688,109520.0,109510.0,0.7569229]
[1752080198302,0.59198688,109520.0,109510.0,0.74779182]
[1752080199139,0.6785891,109520.0,109510.0,0.74779182]
[1752080199465,0.49597322,109520.0,109510.0,0.74779182]
[1752080199649,0.49597322,109520.0,109510.0,0.72952941]
[1752080199786,0.68771901,109520.0,109510.0,0.72952941]
[1752080200005,0.68771901,109520.0,109510.0,0.71372941]
[1752080200203,0.49597322,109520.0,109510.0,0.73199199]
[1752080200613,0.409371,109520.0,109510.0,0.72286074]
[1752080200888,0.40024042,109520.0,109510.0,0.7483919]
[1752080201055,0.40024042,109520.0,109510.0,0.75752298]
[1752080201257,0.409371,109520.0,109510.0,0.73926074]
[1752080201582,0.40024042,109520.0,109510.0,0.74839182]
[1752080201784,0.40024042,109520.0,109510.0,0.73926074]
[1752080201984,0.409371,109520.0,109510.0,0.7483919]
[1752080202317,0.40024042,109520.0,109510.0,0.7483919]
[1752080202520,0.40024042,109520.0,109510.0,0.75752298]
[1752080202693,0.40024042,109520.0,109510.0,0.7483919]
[1752080203155,0.40024042,109520.0,109510.0,0.75752298]
[1752080203365,0.409371,109520.0,109510.0,0.75752298]
[1752080203563,0.40024042,109520.0,109510.0,0.73926074]
[1752080203777,0.40024042,109520.0,109510.0,0.74839182]
[1752080204177,0.40024042,109520.0,109510.0,0.73926074]
[1752080204430,0.41850166,109520.0,109510.0,0.73199199]
[1752080204628,0.6011167,109520.0,109510.0,0.73199199]
[1752080204984,0.49018835,109520.0,109510.0,0.73199199]
[1752080205187,0.4993191,109520.0,109510.0,0.73199199]
[1752080205514,0.42763241,109520.0,109510.0,0.73199199]
[1752080205727,0.61024745,109520.0,109510.0,0.73199199]
[1752080206281,0.59393688,109520.0,109510.0,0.19039628]
[1752080206425,0.5999063,109520.0,109510.0,0.68419808]
[1752080206652,0.5999063,109520.0,109510.0,0.6750665]
[1752080206843,0.69134323,109520.0,109510.0,0.6750665]
[1752080207800,0.69134323,109520.0,109510.0,0.68419808]
[1752080207965,0.68539257,109520.0,109510.0,0.6750665]
[1752080208353,0.70069257,109520.0,109510.0,0.18509628]
[1752080208573,0.70069257,109520.0,109510.0,0.32465628]
[1752080208820,0.70069257,109520.0,109510.0,0.14202456]
[1752080208968,0.70069257,109520.0,109510.0,0.49243478]
[1752080210584,1.19066279,109520.0,109510.0,0.00246456]
[1752080210800,1.19066279,109520.0,109510.0,0.14202456]
[1752080211041,1.05110279,109520.0,109510.0,0.00246456]
[1752080211371,1.19066279,109520.0,109510.0,0.00246456]
[1752080212527,0.84025257,109520.0,109510.0,0.00246456]
[1752080212729,1.19066279,109520.0,109510.0,0.00246456]
[1752080213356,0.84025257,109520.0,109510.0,0.00246456]
[1752080213558,0.57567564,109520.0,109510.0,0.5355065]
[1752080213887,0.71523564,109520.0,109510.0,0.49750478]
[1752080214098,0.57372564,109520.0,109510.0,0.6801365]
[1752080214302,0.57372564,109520.0,109510.0,0.71976791]
[1752080214542,0.57372564,109520.0,109510.0,0.72889916]
[1752080214745,0.57372564,109520.0,109510.0,0.71976791]
[1752080214972,0.57372564,109520.0,109510.0,0.7047203]
[1752080215349,0.39111043,109520.0,109510.0,0.71385146]
[1752080215562,0.42763184,109520.0,109510.0,0.73828254]
[1752080215769,0.42763184,109520.0,109510.0,0.74741354]
[1752080215974,0.51338455,109520.0,109510.0,0.73828254]
[1752080216685,0.51338455,109520.0,109510.0,0.72915146]
[1752080216686,0.5133853,109520.0,109510.0,0.72915146]
[1752080216890,0.68687009,109520.0,109510.0,0.72915146]
[1752080217106,0.67773959,109520.0,109510.0,0.7200203]
[1752080217319,0.67773959,109520.0,109510.0,0.71385163]
[1752080217515,0.67773959,109520.0,109510.0,0.71389163]
[1752080217717,0.67773959,109520.0,109510.0,0.72302288]
[1752080218652,0.3911101,109520.0,109510.0,0.73912288]
[1752080218856,0.59198639,109520.0,109510.0,0.74825404]
[1752080219071,0.376569,109520.0,109510.0,0.75738504]
[1752080219288,0.39482957,109520.0,109510.0,0.75738504]
[1752080219958,0.40396015,109520.0,109510.0,0.75738504]
[1752080220628,0.48662867,109520.0,109510.0,0.75738504]
[1752080221807,0.49575942,109520.0,109510.0,0.74825404]
[1752080222218,0.48662867,109520.0,109510.0,0.75738512]
[1752080222454,0.41309081,109520.0,109510.0,0.75738512]
[1752080222675,0.41309081,109520.0,109510.0,0.75738471]
[1752080223182,0.37652107,109520.0,109510.0,0.75738471]
[1752080223402,0.36739049,109520.0,109510.0,0.75738471]
[1752080223534,0.37652107,109520.0,109510.0,0.75738471]
[1752080223946,0.36739049,109520.0,109510.0,0.75738471]
[1752080224156,0.36739049,109520.0,109510.0,0.77443712]
[1752080224380,0.37652099,109520.0,109510.0,0.77443712]
[1752080224577,0.37652107,109520.0,109510.0,0.77443712]
[1752080224821,0.4582765,109520.0,109510.0,0.77443712]
[1752080225106,0.65002295,109520.0,109510.0,0.60051504]
[1752080225318,0.64089279,109520.0,109510.0,0.74920612]
[1752080226077,0.449147,109520.0,109510.0,0.75833712]
[1752080226408,0.63176204,109520.0,109510.0,0.75833712]
[1752080227214,0.44001584,109520.0,109510.0,0.75833712]
[1752080227422,0.44914634,109520.0,109510.0,0.75833712]
[1752080227625,0.44001584,109520.0,109510.0,0.77493712]
[1752080227880,0.44001584,109520.0,109510.0,0.42447451]
[1752080228025,0.44001584,109520.0,109510.0,0.77493712]
[1752080228223,0.44001576,109520.0,109510.0,0.77490712]
[1752080228475,0.35826033,109520.0,109510.0,0.77440712]
[1752080228849,0.34,109520.0,109510.0,0.75440712]
[1752080229042,0.34913,109520.0,109510.0,0.75440712]
[1752080229249,0.34,109520.0,109510.0,0.75440712]
[1752080230060,0.34913,109520.0,109510.0,0.75440712]
[1752080231557,0.34,109520.0,109510.0,0.75440712]
[1752080231860,0.34913,109520.0,109510.0,0.75443712]
[1752080232066,0.36738874,109530.0,109520.0,0.21507654]
[1752080232374,0.55911702,109530.0,109520.0,0.72283156]
[1752080232787,0.56128702,109530.0,109520.0,0.37236895]
[1752080232988,0.56128702,109530.0,109520.0,0.72283172]
[1752080233220,0.56128702,109530.0,109520.0,0.73196205]
[1752080233645,0.56228702,109530.0,109520.0,0.38149944]
[1752080233824,0.57768702,109530.0,109520.0,0.73196205]
[1752080233975,0.39508865,109530.0,109520.0,0.74109221]
[1752080234179,0.57768702,109530.0,109520.0,0.38149944]
[1752080234781,0.57768702,109530.0,109520.0,0.37236911]
[1752080234986,0.56855769,109530.0,109520.0,0.73196197]
[1752080235186,0.56855769,109530.0,109520.0,0.73196205]
[1752080235634,0.56855769,109530.0,109520.0,0.72283172]
[1752080236025,0.56855769,109530.0,109520.0,0.72282484]
[1752080236236,0.56955769,109530.0,109520.0,0.73195517]
[1752080236980,0.56955769,109530.0,109520.0,0.73191343]
[1752080238326,0.56955769,109530.0,109520.0,0.38149256]
[1752080238538,0.56955769,109530.0,109520.0,0.73191343]
[1752080238747,0.58033366,109530.0,109520.0,0.38149256]
[1752080238950,0.58033366,109530.0,109520.0,0.73191343]
[1752080239158,0.58033366,109530.0,109520.0,0.7227831]
[1752080239767,0.58033366,109530.0,109520.0,0.73191343]
[1752080241402,0.58033366,109530.0,109520.0,0.37236223]
[1752080241608,0.58033366,109530.0,109520.0,0.7227831]
[1752080241749,0.58033366,109530.0,109520.0,0.73191343]
[1752080242603,0.58033366,109530.0,109520.0,0.5825431]
[1752080242763,0.58033366,109530.0,109520.0,0.7225431]
[1752080242963,0.58033366,109530.0,109520.0,0.71341269]
[1752080243198,0.57120408,109530.0,109520.0,0.71341269]
[1752080244215,0.57120408,109530.0,109520.0,0.70428219]
[1752080244422,0.56207425,109530.0,109520.0,0.3695464]
[1752080244628,0.93700606,109530.0,109520.0,0.01704553]
[1752080244857,1.41174197,109530.0,109520.0,0.01704553]
[1752080245036,1.44560366,109530.0,109520.0,0.01704553]
[1752080245194,1.58564366,109530.0,109520.0,0.01704553]
[1752080245607,1.23522279,109530.0,109520.0,0.01704553]
[1752080245833,1.58564366,109530.0,109520.0,0.01704553]
[1752080246257,1.23522279,109530.0,109520.0,0.01704553]
[1752080246876,1.23540034,109530.0,109520.0,0.01704553]
[1752080248353,0.20628647,109520.0,109510.0,4e-05]
[1752080248524,0.91788875,109520.0,109510.0,4e-05]
[1752080248947,0.94532975,109520.0,109510.0,4e-05]
[1752080249152,1.17269374,109520.0,109510.0,4e-05]
[1752080249365,1.31265374,109520.0,109510.0,4e-05]
[1752080249565,1.34551597,109520.0,109510.0,0.00104]
[1752080249784,1.35193455,109520.0,109510.0,0.00104]
[1752080249978,1.35193442,109520.0,109510.0,0.00104]
[1752080250625,1.35193442,109520.0,109510.0,0.00204]
[1752080250852,1.35193442,109520.0,109510.0,0.00104]
[1752080251075,1.34551016,109520.0,109510.0,0.00104]
[1752080251471,1.31265374,109520.0,109510.0,0.00104]
[1752080251617,1.31265374,109520.0,109510.0,4e-05]
[1752080252039,1.31465374,109520.0,109510.0,4e-05]
[1752080252611,1.31665374,109520.0,109510.0,4e-05]
[1752080253214,1.17669374,109520.0,109510.0,4e-05]
[1752080253465,1.31657374,109520.0,109510.0,4e-05]
[1752080256162,0.96597532,109520.0,109510.0,4e-05]
[1752080256384,1.31657374,109520.0,109510.0,4e-05]
[1752080257615,0.96597532,109520.0,109510.0,4e-05]
[1752080257779,1.31657374,109520.0,109510.0,4e-05]
[1752080257985,1.17669374,109520.0,109510.0,4e-05]
[1752080258184,1.31653374,109520.0,109510.0,4e-05]
[1752080266656,1.31629374,109520.0,109510.0,4e-05]
[1752080266834,1.66703884,109520.0,109510.0,4e-05]
[1752080268414,1.69987983,109520.0,109510.0,4e-05]
[1752080268805,1.7062939,109520.0,109510.0,4e-05]
[1752080273209,1.7060539,109520.0,109510.0,4e-05]
[1752080273972,1.56646021,109520.0,109510.0,4e-05]
[1752080274188,0.73782976,109520.0,109510.0,0.00534]
[1752080274413,0.39033941,109520.0,109510.0,0.57907498]
[1752080274631,0.39033941,109520.0,109510.0,0.56994348]
[1752080274632,0.35107804,109520.0,109510.0,0.56994348]
[1752080275104,0.35107804,109520.0,109510.0,0.57907498]
[1752080275300,0.3382949,109520.0,109510.0,0.56994348]
[1752080275440,0.42973183,109520.0,109510.0,0.57907506]
[1752080276510,0.42973183,109520.0,109510.0,0.2284033]
[1752080276798,0.42060133,109520.0,109510.0,0.38731176]
[1752080277094,0.3291644,109520.0,109510.0,0.03664]
[1752080277511,0.4701644,109520.0,109510.0,0.03664]
[1752080277689,0.4701644,109520.0,109510.0,0.21612172]
[1752080277892,0.4701644,109520.0,109510.0,0.21927172]
[1752080278441,0.53544068,109520.0,109510.0,0.21927172]
[1752080279006,0.53544068,109520.0,109510.0,0.03664]
[1752080279614,0.53544068,109520.0,109510.0,0.21927172]
[1752080279862,0.53544068,109520.0,109510.0,0.02104]
[1752080280294,0.53544068,109520.0,109510.0,0.03674]
[1752080281037,0.53544068,109520.0,109510.0,0.21937172]
[1752080281510,0.39444068,109520.0,109510.0,0.21937172]
[1752080281673,0.3853101,109520.0,109510.0,0.21937172]
[1752080281878,0.32003382,109520.0,109510.0,0.21937172]
[1752080282864,0.32003382,109520.0,109510.0,0.03674]
[1752080284280,0.46083382,109520.0,109510.0,0.03674]
[1752080284621,0.46083382,109520.0,109510.0,0.05378804]
[1752080284827,0.46291382,109520.0,109510.0,0.03808804]
[1752080285034,0.55435075,109520.0,109510.0,0.02238804]
[1752080285437,0.55435075,109520.0,109510.0,0.03878804]
[1752080286417,0.55227075,109520.0,109510.0,0.03878804]
[1752080286627,0.55227075,109520.0,109510.0,0.05378804]
[1752080288213,0.41147075,109520.0,109510.0,0.05378804]
[1752080290309,0.32003382,109520.0,109510.0,0.23641976]
[1752080291074,0.32003382,109520.0,109510.0,0.24555134]
[1752080291594,0.04598185,109520.0,109510.0,0.61430956]
[1752080291797,0.59598829,109520.0,109510.0,0.61430973]
[1752080292481,0.60511837,109520.0,109510.0,0.60517848]
[1752080292749,0.62477523,109520.0,109510.0,0.61430973]
[1752080292967,0.61564515,109520.0,109510.0,0.59604715]
[1752080293112,0.60651482,109520.0,109510.0,0.60517865]
[1752080293761,0.60651482,109520.0,109510.0,0.61431006]
[1752080293976,0.60651482,109520.0,109510.0,0.62344139]
[1752080295432,0.60651482,109520.0,109510.0,0.23641976]
[1752080295646,0.59738441,109520.0,109510.0,0.37701976]
[1752080298185,0.59738441,109520.0,109510.0,0.35997172]
[1752080298533,0.59738441,109520.0,109510.0,0.37702103]
[1752080299378,0.59738441,109520.0,109510.0,0.19438931]
[1752080299783,0.59738441,109520.0,109510.0,0.05378931]
[1752080299970,0.59738441,109520.0,109510.0,0.36186103]
[1752080301243,0.57772755,109520.0,109510.0,0.38609261]
[1752080301453,0.58685796,109520.0,109510.0,0.75485108]
[1752080301655,0.59598871,109520.0,109510.0,0.76398224]
[1752080301837,0.59598871,109520.0,109510.0,0.75485108]
[1752080302245,0.59598871,109520.0,109510.0,0.76398224]
[1752080302723,0.59598871,109520.0,109510.0,0.75485108]
[1752080302847,0.59598871,109520.0,109510.0,0.76398224]
[1752080303776,0.59598871,109520.0,109510.0,0.75485108]
[1752080303985,0.40424292,109520.0,109510.0,0.75485108]
[1752080304193,0.40424292,109520.0,109510.0,0.76398224]
[1752080304565,0.41337367,109520.0,109510.0,0.76398224]
[1752080304897,0.59598871,109520.0,109510.0,0.75485108]
[1752080305555,0.59598871,109520.0,109510.0,0.76398224]
[1752080305760,0.40424292,109520.0,109510.0,0.77312397]
[1752080306388,0.38598185,109520.0,109510.0,0.77312397]
[1752080306593,0.38598185,109520.0,109510.0,0.77312339]
[1752080306594,0.36767101,109520.0,109510.0,0.77312339]
[1752080306997,0.02767093,109520.0,109510.0,0.77312339]
[1752080307609,0.03680126,109520.0,109510.0,0.77312339]
[1752080307823,0.02767093,109520.0,109510.0,0.77312339]
[1752080308426,0.004,109520.0,109510.0,0.77312339]
[1752080309137,0.004,109520.0,109510.0,0.78242436]
[1752080309314,0.002,109520.0,109510.0,0.78242436]
[1752080309669,0.003,109520.0,109510.0,0.78242436]
[1752080310078,0.001,109520.0,109510.0,0.78242436]
[1752080310480,0.001,109520.0,109510.0,0.87386129]
[1752080310481,0.002,109520.0,109510.0,0.87386129]
[1752080310680,0.00078036,109520.0,109510.0,0.87386129]
[1752080312196,0.00078036,109520.0,109510.0,0.95567408]
[1752080312416,0.00078036,109520.0,109510.0,0.87386129]
[1752080312776,0.00078036,109520.0,109510.0,0.95567408]
[1752080313160,0.00078036,109520.0,109510.0,1.0479704]
[1752080313367,0.05105593,109540.0,109530.0,0.23043703]
[1752080313568,0.05105593,109540.0,109530.0,0.7381528]
[1752080313755,0.05105593,109540.0,109530.0,0.72902339]
[1752080314596,0.05205593,109540.0,109530.0,0.70283393]
[1752080314775,0.23463763,109540.0,109530.0,0.71196359]
[1752080314981,0.23351038,109540.0,109530.0,0.33392828]
[1752080315225,0.23351038,109540.0,109530.0,0.34305811]
[1752080315628,0.23351038,109540.0,109530.0,0.35218786]
[1752080315832,0.23351038,109540.0,109530.0,0.36131752]
[1752080316031,0.23551038,109540.0,109530.0,0.3704471]
[1752080316191,0.23551038,109540.0,109530.0,0.3734571]
[1752080316391,0.23551038,109540.0,109530.0,0.36432752]
[1752080316594,0.21838038,109540.0,109530.0,0.36432752]
[1752080316823,0.21838038,109540.0,109530.0,0.3734571]
[1752080317001,0.21838038,109540.0,109530.0,0.7405525]
[1752080317002,0.03579826,109540.0,109530.0,0.7405525]
[1752080317204,0.03579776,109540.0,109530.0,0.740552]
[1752080317468,0.04492651,109540.0,109530.0,0.755552]
[1752080317909,0.06318442,109540.0,109530.0,0.73142267]
[1752080318115,0.04492651,109540.0,109530.0,0.75625166]
[1752080318325,0.03579759,109540.0,109530.0,0.75625166]
[1752080318524,0.03579768,109540.0,109530.0,0.75625166]
[1752080318729,0.04492626,109540.0,109530.0,0.75625166]
[1752080319126,0.05405501,109540.0,109530.0,0.75625166]
[1752080320284,0.24576629,109540.0,109530.0,0.75625166]
[1752080320504,0.06318459,109540.0,109530.0,0.75625166]
[1752080320699,0.23663779,109540.0,109530.0,0.73142233]
[1752080321180,0.05405609,109540.0,109530.0,0.73142233]
[1752080321292,0.23663829,109540.0,109530.0,0.36266794]
[1752080321498,0.05405659,109540.0,109530.0,0.73142274]
[1752080321699,0.05405659,109540.0,109530.0,0.74055207]
[1752080322104,0.23663829,109540.0,109530.0,0.74055207]
[1752080322353,0.04492751,109540.0,109530.0,0.74055207]
[1752080322555,0.03579851,109540.0,109530.0,0.74055207]
[1752080323425,0.22750921,109540.0,109530.0,0.72229333]
[1752080324572,0.22750921,109540.0,109530.0,0.73142274]
[1752080324772,0.23663829,109540.0,109530.0,0.73142274]
[1752080325202,0.23663829,109540.0,109530.0,0.74055207]
[1752080326129,0.26407229,109540.0,109530.0,0.74055207]
[1752080327593,0.23663829,109540.0,109530.0,0.74055207]
[1752080327795,0.26407229,109540.0,109530.0,0.74055207]
[1752080329679,0.26407229,109540.0,109530.0,0.74059207]
[1752080331029,0.26407229,109540.0,109530.0,0.72275207]
[1752080334197,0.26407229,109540.0,109530.0,0.71362274]
[1752080336234,0.04492751,109540.0,109530.0,0.72275207]
[1752080336643,0.22750921,109540.0,109530.0,0.70449333]
[1752080336985,0.22957921,109540.0,109530.0,0.68774191]
[1752080337191,0.22957921,109540.0,109530.0,0.69687141]
[1752080338214,0.25701221,109540.0,109530.0,0.69687141]
[1752080339547,0.07443051,109540.0,109530.0,0.70600074]
[1752080339770,0.04699751,109540.0,109530.0,0.70600074]
[1752080340151,0.22957921,109540.0,109530.0,0.70600074]
[1752080340345,0.23870829,109540.0,109530.0,0.70600074]
[1752080340559,0.23870829,109540.0,109530.0,0.69687141]
[1752080341539,0.22957954,109540.0,109530.0,0.69687141]
[1752080344409,0.22957954,109540.0,109530.0,0.34652702]
[1752080344843,0.22957954,109540.0,109530.0,0.71391289]
[1752080345715,0.22957954,109540.0,109530.0,0.3635685]
[1752080345932,0.22957954,109540.0,109530.0,0.71391289]
[1752080346102,0.22957954,109540.0,109530.0,0.73139289]
[1752080350580,0.22957954,109540.0,109530.0,0.72226339]
[1752080351652,0.22961954,109540.0,109530.0,0.73139289]
[1752080352221,0.22049063,109540.0,109530.0,0.72226339]
[1752080353896,0.22049063,109540.0,109530.0,0.371919]
[1752080354105,0.22049063,109540.0,109530.0,0.72226339]
[1752080355495,0.22049063,109540.0,109530.0,0.20484985]
[1752080355738,0.23669063,109540.0,109530.0,0.71012398]
[1752080356095,0.31552564,109540.0,109530.0,0.71012398]
[1752080356861,0.31847564,109540.0,109530.0,0.71012398]
[1752080357627,0.31847564,109540.0,109530.0,0.71012497]
[1752080357825,0.31847564,109540.0,109530.0,0.35978058]
[1752080358041,0.31847564,109540.0,109530.0,0.71012497]
[1752080358418,0.31847564,109540.0,109530.0,0.71925472]
[1752080359466,0.31847564,109540.0,109530.0,0.71012497]
[1752080359676,0.31847564,109540.0,109530.0,0.57044497]
[1752080359957,0.31847564,109540.0,109530.0,0.71012497]
[1752080360553,0.31847564,109540.0,109530.0,0.57957472]
[1752080360806,0.31847564,109540.0,109530.0,0.71925472]
[1752080361299,0.23964063,109540.0,109530.0,0.71925472]
[1752080361533,0.23964063,109540.0,109530.0,0.71012497]
[1752080361710,0.23051163,109540.0,109530.0,0.71012497]
[1752080362530,0.23051163,109540.0,109530.0,0.71925472]
[1752080363373,0.23051163,109540.0,109530.0,0.70221225]
[1752080363575,0.23051163,109540.0,109530.0,0.35186786]
[1752080363855,0.22138255,109540.0,109530.0,0.56253225]
[1752080364055,0.22138255,109540.0,109530.0,0.6930825]
[1752080364774,0.29839175,109540.0,109530.0,0.6930825]
[1752080365579,0.29839175,109540.0,109530.0,0.5534025]
[1752080365826,0.29839175,109540.0,109530.0,0.67482276]
[1752080366030,0.29839175,109540.0,109530.0,0.54427267]
[1752080366229,0.66483614,109540.0,109530.0,0.13972]
[1752080366981,0.66483614,109540.0,109530.0,4e-05]
[1752080367342,0.66483614,109540.0,109530.0,0.13972]
[1752080371040,0.64873614,109540.0,109530.0,0.13972]
[1752080372263,0.57172694,109540.0,109530.0,0.11972]
[1752080373697,0.22138255,109540.0,109530.0,0.30231837]
[1752080373938,0.57172694,109540.0,109530.0,0.11972]
[1752080381745,0.57172694,109540.0,109530.0,0.30231837]
[1752080381746,0.22138255,109540.0,109530.0,0.30231837]
[1752080381941,0.22138255,109540.0,109530.0,0.31144828]
[1752080382459,0.22138255,109540.0,109530.0,0.66179267]
[1752080383265,0.22138255,109540.0,109530.0,0.65266276]
[1752080383467,0.22138255,109540.0,109530.0,0.18259837]
[1752080383710,0.31776525,109540.0,109530.0,0.33136828]
[1752080383910,0.31776525,109540.0,109530.0,0.32223837]
[1752080384117,0.66810964,109540.0,109530.0,0.32223837]
[1752080384747,0.0236706,109530.0,109520.0,0.59021361]
[1752080384917,0.0257206,109530.0,109520.0,0.72985361]
[1752080385654,0.0236706,109530.0,109520.0,0.72985361]
[1752080386038,0.03280026,109530.0,109520.0,0.72985361]
[1752080386864,0.03280026,109530.0,109520.0,0.37950922]
[1752080387068,0.04192984,109530.0,109520.0,0.72985361]
[1752080388031,0.05310934,109530.0,109520.0,0.23986922]
[1752080388181,0.06223917,109530.0,109520.0,0.72072361]
[1752080389277,0.05310934,109530.0,109520.0,0.72072361]
[1752080390124,0.04192959,109530.0,109520.0,0.72072361]
[1752080391001,0.0236701,109530.0,109520.0,0.37037922]
[1752080391205,0.04192918,109530.0,109520.0,0.72072361]
[1752080391832,0.0327996,109530.0,109520.0,0.72072361]
[1752080392205,0.04192918,109530.0,109520.0,0.72072361]
[1752080392426,0.04192918,109530.0,109520.0,0.72042361]
[1752080392954,0.05105884,109530.0,109520.0,0.72042361]
[1752080393942,0.06018859,109530.0,109520.0,0.37007922]
[1752080394152,0.06018859,109530.0,109520.0,0.72042361]
[1752080394277,0.06018859,109530.0,109520.0,0.71129353]
[1752080395359,0.24278762,109530.0,109520.0,0.7204247]
[1752080395679,0.05105934,109530.0,109520.0,0.73868511]
[1752080396333,0.06018917,109530.0,109520.0,0.73868511]